Workbook

Sheet Planning Input
A1: [Name]
A2: 2008 Year-End Tax Planning: Planning Input
A3: [Date]
A5: You do not need to enter anything into shaded cells. | E5: CONFIDENTIAL
A6: Filing Status and Exemptions | B6: 2007 | D6: 2008
A7: Filing status | B7: Married Filing Separately | D7: =CY_FS -> Married Filing Separately
A8: If married filing separately, live with spouse at any time during year? | B8: No | D8: Yes
A9: Taxpayer's age at end of year | B9: 37 | D9: =B9+1 -> 38
A10: Spouse's age at end of year | B10: 36 | D10: =IF(B10<>0, B10+1, 0) -> 37
A11: Taxpayer, spouse, or both blind? | B11: No | D11: =CY_Blind -> No
A12: Number of dependents | B12: 1 | D12: =B12 -> 1
A13: Number of dependents eligible for child tax credit | B13: 1 | D13: =B13 -> 1
A15: Income
A16: Wages, salaries, tips, etc. | C16: 42000 | E16: =C16 -> 42000
A17: Tax-exempt interest | D17: =B17 -> 0
A18: Taxable interest and ordinary dividends | C18: 25 | E18: =C18 -> 25
A19: Qualified dividends | D19: =B19 -> 0
A20: Taxable state refunds | E20: 0
A21: Business income (or loss) | C21: 57000 | E21: =C21 -> 57000
A22: Capital gain (or loss) | C22: -3000 | E22: -3000
A23: Other gains (or losses) | E23: 0
A24: Taxable IRA and pension distributions | E24: 0
A25: Rental real estate, royalties, partnerships, S corporations, etc. | C25: -2016 | E25: =C25 -> -2016
A26: Unemployment compensation | E26: =C26 -> 0
A27: Social Security benefits: Total | D27: =B27 -> 0
A28: Social Security benefits: Taxable | C28: ='Taxable Social Security Income'!D33 -> 0 | E28: ='Taxable Social Security Income'!F33 -> 0
A29: Other income | E29: =C29 -> 0
A30: Total income | C30: =SUM(C16:C26)+C28+C29 -> 94009 | E30: =SUM(E16:E26)+E28+E29 -> 94009
A32: Adjustments to Income
A33: Taxpayer's traditional IRA contribution | D33: =B33 -> 0
A34: Taxpayer covered by retirement plan? | B34: No | D34: =B34 -> No
A35: Spouse's traditional IRA contribution | D35: =B35 -> 0
A36: Spouse covered by retirement plan? | B36: No | D36: =B36 -> No
A37: IRA deduction | C37: =IF(B27>0, 0, Adjustments!C21+Adjustments!D21) -> 0 | E37: =IF(D27>0, 0, Adjustments!F21+Adjustments!G21) -> 0
A38: Tuition and fees paid | B38: 4000 | D38: =B38 -> 4000
A39: Tuition and fees deduction | C39: =Adjustments!C62 -> 0 | E39: =Adjustments!E62 -> 0
A40: Health savings account deduction | C40: 3000 | E40: =C40 -> 3000
A41: Moving expenses | E41: =C41 -> 0
A42: One-half of self-employment tax | C42: =ROUND(0.5*B70,0) -> 4090 | E42: =0.5*D70 -> 4090
A43: Self-employed health insurance deduction | E43: =C43 -> 0
A44: Self-employed SEP, SIMPLE, and qualified plans | E44: =C44 -> 0
A45: Other adjustments | E45: =C45 -> 0
A46: Total adjustments | C46: =SUM(C37:C45) -> 7090 | E46: =SUM(E37:E45) -> 7090
A47: Adjusted gross income | C47: =C30-C46 -> 86919 | E47: =E30-E46 -> 86919
A48: Standard deduction | B48: =SUM('Deductions and Exemptions'!D20:D23)+SUM('Deductions and Exemptions'!E20:E23)+SUM('Deductions and Exemptions'!F20:F23) -> 4850 | D48: =SUM('Deductions and Exemptions'!D27:D30)+SUM('Deductions and Exemptions'!E27:E30)+SUM('Deductions and Exemptions'!F27:F30) -> 5000
A49: Itemized Deductions
A50: Medical and dental expenses: Total | B50: 5544 | D50: =B50 -> 5544
A51: Medical and dental expenses: Deductible | C51: =IF(B50=0, 0, MAX(0, B50-(0.075*MAX(0, C47)))) -> 0 | E51: =IF(D50=0, 0, MAX(0, D50-(0.075*MAX(0, 'Planning Input'!E47)))) -> 0
A52: Real estate taxes | C52: 0 | E52: =C52 -> 0
A53: State and local taxes | C53: 5000 | E53: 5000
A54: Other taxes | E54: 0
A55: Home mortgage interest and points | C55: 6987 | E55: 6987
A56: Investment interest | E56: 0
A57: Gifts to charity | E57: 0
A58: Casualty or theft loss(es) | E58: 0
A59: Miscellaneous deductions not subject to 2% limitation | E59: 0
A60: Miscellaneous deductions subject to 2% limitation: Total | B60: 350 | D60: =B60 -> 350
A61: Miscellaneous deductions subject to 2% limitation: Deductible | C61: =MAX(0,B60-(0.02*MAX(0, C47))) -> 0 | E61: =MAX(0, D60-(0.02*MAX(0, 'Planning Input'!E47))) -> 0
A62: Total itemized deductions | C62: =SUM(C51:C59)+C61 -> 11987 | E62: =SUM(E51:E59)+E61 -> 11987
A63: Allowed itemized deductions | C63: ='Deductions and Exemptions'!C16 -> 11520 | E63: ='Deductions and Exemptions'!E16 -> 11568.68
A64: Itemized or standard deduction | C64: =MAX(B48,C63) -> 11520 | E64: =MAX(D48,E63) -> 11568.68
A65: Exemptions | C65: ='Deductions and Exemptions'!C44 -> 6200 | E65: ='Deductions and Exemptions'!E44 -> 6400
A66: Taxable income | C66: =MAX(0, ROUND(C47-C64-C65,0)) -> 69199 | E66: =MAX(0, ROUND(E47-E64-E65,0)) -> 68950
A68: Tax
A69: Income tax | B69: 14354 | D69: ='Tax Calculations'!I109 -> 14172
A70: Self-employment tax | B70: ='Tax Calculations'!C16 -> 8180 | D70: ='Tax Calculations'!E16 -> 8180
A71: Total tax | C71: =SUM(B69:B70) -> 22534 | E71: =SUM(D69:D70) -> 22352
A72: Credits
A73: Foreign tax credit | D73: =B73 -> 0
A74: Credit for child and dependent care expenses | D74: =B74 -> 0
A75: Credit for the elderly or the disabled | D75: =B75 -> 0
A76: Education credits | D76: =B76 -> 0
A77: Retirement savings contributions credit | D77: =B77 -> 0
A78: Child tax credit | B78: =Credits!C14 -> 0 | D78: =Credits!E14 -> 0
A79: Other credits | B79: 1301 | D79: =B79 -> 1301
A80: Total credits | C80: =SUM(B73:B79) -> 1301 | E80: =SUM(D73:D79) -> 1301
A81: Tax after credits | C81: =C71-C80 -> 21233 | E81: =E71-E80 -> 21051
A82: Payments
A83: Withholding | D83: =B83 -> 0
A84: Estimated tax payments | D84: =B84 -> 0
A85: Total payments | C85: =B83+B84 -> 0 | E85: =D83+D84 -> 0
A86: Refund (balance due) | C86: =C85-C81 -> -21233 | E86: =E85-E81 -> -21051

Sheet Planning Summary
A1: ='Planning Input'!A1 -> [Name]
A2: 2008 Year-End Tax Planning: Planning Summary
A3: ='Planning Input'!A3 -> [Date]
A5: Gray cells are calculated for you. You do not need to enter anything in them. | C5: CONFIDENTIAL
A6: Filing Status and Exemptions | B6: 2007 | C6: 2008
A7: Filing status | B7: =CY_FS -> Married Filing Separately | C7: =NY_FS -> Married Filing Separately
A8: Number of dependents | B8: ='Planning Input'!B12 -> 1 | C8: ='Planning Input'!D12 -> 1
A9: Income
A10: Wages, salaries, tips, etc. | B10: ='Planning Input'!C16 -> 42000 | C10: ='Planning Input'!E16 -> 42000
A11: Taxable interest and ordinary dividends | B11: ='Planning Input'!C18 -> 25 | C11: ='Planning Input'!E18 -> 25
A12: Taxable state refunds | B12: ='Planning Input'!C20 -> 0 | C12: ='Planning Input'!E20 -> 0
A13: Business income (or loss) | B13: ='Planning Input'!C21 -> 57000 | C13: ='Planning Input'!E21 -> 57000
A14: Capital gain (or loss) | B14: ='Planning Input'!C22 -> -3000 | C14: ='Planning Input'!E22 -> -3000
A15: Other gains (or losses) | B15: ='Planning Input'!C23 -> 0 | C15: ='Planning Input'!E23 -> 0
A16: Taxable IRA and pension distributions | B16: ='Planning Input'!C24 -> 0 | C16: ='Planning Input'!E24 -> 0
A17: Rental real estate, partnerships, S corporations | B17: ='Planning Input'!C25 -> -2016 | C17: ='Planning Input'!E25 -> -2016
A18: Unemployment compensation | B18: ='Planning Input'!C26 -> 0 | C18: ='Planning Input'!E26 -> 0
A19: Social Security benefits: Taxable | B19: ='Planning Input'!C28 -> 0 | C19: ='Planning Input'!E28 -> 0
A20: Other income | B20: ='Planning Input'!C29 -> 0 | C20: ='Planning Input'!E29 -> 0
A21: Total income | B21: ='Planning Input'!C30 -> 94009 | C21: ='Planning Input'!E30 -> 94009
A22: Adjustments to Income
A23: IRA deduction | B23: ='Planning Input'!C37 -> 0 | C23: ='Planning Input'!E37 -> 0
A24: One-half of self-employment tax | B24: ='Planning Input'!C42 -> 4090 | C24: ='Planning Input'!E42 -> 4090
A25: Other adjustments | B25: ='Planning Input'!C39+'Planning Input'!C40+'Planning Input'!C41+'Planning Input'!C43+'Planning Input'!C44+'Planning Input'!C45 -> 3000 | C25: ='Planning Input'!E39+'Planning Input'!E40+'Planning Input'!E41+'Planning Input'!E43+'Planning Input'!E44+'Planning Input'!E45 -> 3000
A26: Total adjustments | B26: ='Planning Input'!C46 -> 7090 | C26: ='Planning Input'!E46 -> 7090
A27: Adjusted gross income | B27: ='Planning Input'!C47 -> 86919 | C27: ='Planning Input'!E47 -> 86919
A28: Deductions
A29: Standard deduction | B29: ='Planning Input'!B48 -> 4850 | C29: ='Planning Input'!D48 -> 5000
A30: Allowed itemized deductions | B30: ='Planning Input'!C63 -> 11520 | C30: ='Planning Input'!E63 -> 11568.68
A31: Larger of itemized or standard deduction | B31: ='Planning Input'!C64 -> 11520 | C31: ='Planning Input'!E64 -> 11568.68
A32: Exemptions | B32: ='Planning Input'!C65 -> 6200 | C32: ='Planning Input'!E65 -> 6400
A33: Taxable Income | B33: =CY_TaxIncome -> 69199 | C33: =NY_TaxIncome -> 68950
A34: Tax
A35: Income tax | B35: ='Tax Calculations'!F109 -> 14219 | C35: ='Tax Calculations'!I109 -> 14172
A36: Self-employment tax | B36: ='Tax Calculations'!C16 -> 8180 | C36: ='Tax Calculations'!E16 -> 8180
A37: Total tax | B37: =SUM(B35:B36) -> 22399 | C37: =SUM(C35:C36) -> 22352
A38: Credits | B38: =SUM('Planning Input'!B73:B79) -> 1301 | C38: =SUM('Planning Input'!D73:D78) -> 0
A39: Tax after credits | B39: =B37-B38 -> 21098 | C39: =C37-C38 -> 22352
A40: Withholding | B40: ='Planning Input'!B83 -> 0 | C40: ='Planning Input'!D83 -> 0
A41: Estimated tax payments | B41: ='Planning Input'!B84 -> 0 | C41: ='Planning Input'!D84 -> 0
A42: Refund (balance due) | B42: =B40+B41-B39 -> -21098 | C42: =C40+C41-C39 -> -22352
A44: Effective tax rate | B44: ='Tax Calculations'!C112 -> 0.205479848 | C44: ='Tax Calculations'!E112 -> 0.2055402466
A45: Marginal tax rate | B45: =CY_Marginal -> 0.28 | C45: =NY_Marginal -> 0.28
A46: =IF(B36=0, "", "Marginal tax rate: Self-employment income") -> Marginal tax rate: Self-employment income | B46: =IF(B36 = 0,"", CY_Marginal+'Tax Calculations'!C9+'Tax Calculations'!C10) -> 0.433 | C46: =IF(B36=0, "", NY_Marginal+'Tax Calculations'!E9+'Tax Calculations'!E10) -> 0.433

Sheet Taxable Social Security Income
A1: ='Planning Input'!A1 -> [Name]
A2: 2008 Year-End Tax Planning: Taxable Social Security Income
A3: ='Planning Input'!A3 -> [Date]
A5: NOTE: If client received social security and made traditional IRA contributions, see IRS Publication 590.
A6: Gray cells are calculated for you. You do not need to enter anything in them. | F6: CONFIDENTIAL
C7: 2007 | E7: 2008
A8: 1 | B8: Total Social Security income received | D8: ='Planning Input'!B27 -> 0 | F8: ='Planning Input'!D27 -> 0
A9: 2 | B9: One-half of Social Security income received | D9: =0.5*D8 -> 0 | F9: =0.5*F8 -> 0
A10: 3 | B10: Income as prescribed | D10: =IF(D8=0, 0, 'Planning Input'!C16+'Planning Input'!C18+'Planning Input'!C20+'Planning Input'!C21+'Planning Input'!C22+'Planning Input'!C23+'Planning Input'!C24+'Planning Input'!C25+'Planning Input'!C26+'Planning Input'!C29) -> 0 | F10: =IF(F8=0, 0, 'Planning Input'!E16+'Planning Input'!E18+'Planning Input'!E20+'Planning Input'!E21+'Planning Input'!E22+'Planning Input'!E23+'Planning Input'!E24+'Planning Input'!E25+'Planning Input'!E26+'Planning Input'!E29) -> 0
A11: 4 | B11: Tax-exempt interest | D11: ='Planning Input'!B17 -> 0 | F11: ='Planning Input'!D17 -> 0
A12: 5 | B12: Sum of lines 2, 3, and 4 above | D12: =SUM(D9:D11) -> 0 | F12: =SUM(F9:F11) -> 0
A13: 6 | B13: Certain adjustments from 1040 (not including IRA) | D13: =IF(D8=0, 0, 'Planning Input'!C40+'Planning Input'!C41+'Planning Input'!C42+'Planning Input'!C43+'Planning Input'!C45) -> 0 | F13: =IF(F8=0, 0, 'Planning Input'!E40+'Planning Input'!E41+'Planning Input'!E42+'Planning Input'!E43+'Planning Input'!E45) -> 0
A14: 7 | B14: Provisional income | D14: =D12-D13 -> 0 | F14: =F12-F13 -> 0
A15: 8 | B15: Enter (a) $32,000 if married filing jointly, or
B16: (b) $0 if married filing separately and lived with spouse at any time during year, or
B17: (c) $25,000 if all others | D17: =IF(D8=0, 0, IF(CY_FS="Married Filing Jointly", 32000, IF(CY_FS<>"Married Filing Separately", 25000, IF('Planning Input'!B8="No", 25000, 0)))) -> 0 | F17: =IF(F8=0, 0, IF(NY_FS="Married Filing Jointly", 32000, IF(NY_FS<>"Married Filing Separately", 25000, IF('Planning Input'!D8="No", 25000, 0)))) -> 0
A18: 9 | B18: Subtract line 8 from line 7 | D18: =D14-D17 -> 0 | F18: =F14-F17 -> 0
A19: 10 | B19: Smaller of line 2, or 50% of line 9 | D19: =MIN(D9, 0.5 * D18) -> 0 | F19: =MIN(F9, 0.5 * F18) -> 0
A21: 11 | B21: Enter the smaller of line 10 or:
B22: (a) $6,000 if married filing jointly, or
B23: (b) $0 if married filing separately and lived with spouse at any time during year, or
B24: (c) $4,500 if all others | D24: =IF(CY_FS="Married Filing Jointly",IF(D14<44001,0,6000),IF(D14<34001,0,MIN(D19,IF(CY_FS<>"Married Filing Separately",4500,IF('Planning Input'!B8="No",4500,0))))) -> 0 | F24: =IF(NY_FS="Married Filing Jointly",IF(F14<44001,0,6000),IF(F14<34001,0,MIN(F19,IF(NY_FS<>"Married Filing Separately",4500,IF('Planning Input'!D8="No",4500,0))))) -> 0
A25: 12 | B25: Amount from line 7 | D25: =IF(CY_FS="Married Filing Jointly",IF(D14<44001,0,D14),IF(D14<34001,0,D14)) -> 0 | F25: =IF(NY_FS="Married Filing Jointly",IF(F14<44001,0,F14),IF(F14<34001,0,F14)) -> 0
A26: 13 | B26: Enter (a) $44,000 if married filing jointly, or
B27: (b) $0 if married filing separately and lived with spouse at any time during year, or
B28: (c) $34,000, all others | D28: =IF(CY_FS = "Married Filing Jointly", IF(D14<44001, 0, 44000), IF(D14<34001, 0, MIN(D23,IF(CY_FS<>"Married Filing Separately", 34000,IF('Planning Input'!B8="No", 34000, 0))))) -> 0 | F28: =IF(NY_FS = "Married Filing Jointly", IF(F14<44001, 0, 44000), IF(F14<34001, 0, MIN(F23,IF(NY_FS<>"Married Filing Separately", 34000,IF('Planning Input'!D8="No", 34000, 0))))) -> 0
A29: 14 | B29: Subtract line 13 from line 12 | D29: =MAX(0, D25-D28) -> 0 | F29: =MAX(0, F25-F28) -> 0
A30: 15 | B30: Multiply line 14 by 0.85 | D30: =D29*0.85 -> 0 | F30: =F29*0.85 -> 0
A31: 16 | B31: Add line 11 and line 15 | D31: =D24+D30 -> 0 | F31: =F24+F30 -> 0
A32: 17 | B32: Multiply line 1 by 0.85 | D32: =IF(CY_FS = "Married Filing Jointly", IF(D14<44001, 0, D8*0.85),IF(D14<34001, 0, D8*0.85)) -> 0 | F32: =IF(NY_FS = "Married Filing Jointly", IF(F14<44001, 0, F8*0.85),IF(F14<34001, 0, F8*0.85)) -> 0
A33: 18 | B33: Taxable Social Security income | D33: =IF(CY_FS = "Married Filing Jointly", IF(D14<44001, MAX(0, D19), MAX(0, MIN(D31,D32))),IF(D14<34001, MAX(0, D19), MAX(0, MIN(D31,D32)))) -> 0 | F33: =IF(NY_FS = "Married Filing Jointly", IF(F14<44001, MAX(0, F19), MAX(0, MIN(F31,F32))),IF(F14<34001, MAX(0, F19), MAX(0, MIN(F31,F32)))) -> 0

Sheet Adjustments
A1: ='Planning Input'!A1 -> [Name]
A2: 2008 Year-End Tax Planning: Adjustments
A3: ='Planning Input'!A3 -> [Date]
A5: NOTE: If client received Social Security income and made traditional IRA contributions, see IRS Publication 590.
A6: You do not need to enter anything into shaded cells. | G6: CONFIDENTIAL
B7: 2007 | E7: 2008
A8: IRA Deduction | C8: Taxpayer IRA | D8: Spouse IRA | F8: Taxpayer IRA | G8: Spouse IRA
A9: Traditional IRA contributions | C9: ='Planning Input'!B33 -> 0 | D9: ='Planning Input'!B35 -> 0 | F9: ='Planning Input'!D33 -> 0 | G9: ='Planning Input'!D35 -> 0
A10: Covered by retirement plan? | C10: ='Planning Input'!B34 -> No | D10: ='Planning Input'!B36 -> No | F10: ='Planning Input'!D34 -> No | G10: ='Planning Input'!D36 -> No
A11: Skip next five lines? | B11: =IF(CY_FS<>"Married Filing Jointly",IF(C10="No","Yes", "No"),IF(C10="No", IF(D10 = "No", "Yes", "No"),"No")) -> Yes | E11: =IF(NY_FS<>"Married Filing Jointly",IF(F10="No","Yes", "No"),IF(F10="No", IF(G10 = "No", "Yes", "No"),"No")) -> Yes
A13: Amount from Maximum Income table (see below) | C13: =IF(B11="Yes", 0, D25+D26+D28+D29+D30+D32+D33) -> 0 | D13: =IF(CY_FS <> "Married Filing Jointly", 0, IF(B11="Yes", 0, E28+E29+E30)) -> 0 | F13: =IF($E11="Yes", 0, D36+D37+D39+D40+D41+D43+D44) -> 0 | G13: =IF(NY_FS <> "Married Filing Jointly", 0,IF($E11="Yes", 0, E39+E40+E41)) -> 0
A14: Total income (not including Social Security income) | B14: =IF(B11="Yes", 0, IF('Planning Input'!B27 > 0, 0, 'Planning Input'!C16+'Planning Input'!C18+'Planning Input'!C20+'Planning Input'!C21+'Planning Input'!C22+'Planning Input'!C23+'Planning Input'!C24+'Planning Input'!C25+'Planning Input'!C26+'Planning Input'!C29)) -> 0 | E14: =IF(E11="Yes", 0, IF('Planning Input'!D27 > 0, 0, 'Planning Input'!E16+'Planning Input'!E18+'Planning Input'!E20+'Planning Input'!E21+'Planning Input'!E22+'Planning Input'!E23+'Planning Input'!E24+'Planning Input'!E25+'Planning Input'!E26+'Planning Input'!E29)) -> 0
A15: Other adjustments to income | B15: =IF(B11="Yes", 0, 'Planning Input'!C40+'Planning Input'!C41+'Planning Input'!C42+'Planning Input'!C43+'Planning Input'!C45) -> 0 | E15: =IF(E11="Yes", 0, 'Planning Input'!E40+'Planning Input'!E41+'Planning Input'!E42+'Planning Input'!E43+'Planning Input'!E45) -> 0
A16: Adjusted income to compare to maximum limits | C16: =B14-B15 -> 0 | D16: =IF(CY_FS <> "Married Filing Jointly", 0, B14-B15) -> 0 | F16: =E14-E15 -> 0 | G16: =IF(NY_FS <> "Married Filing Jointly", 0, E14-E15) -> 0
A17: If adjusted income is less than the maximum income, difference | C17: =IF(C16<C13, C13-C16, 0) -> 0 | D17: =IF(CY_FS <> "Married Filing Jointly", 0, IF(D16<D13, D13-D16, 0)) -> 0 | F17: =IF(F16<F13, F13-F16, 0) -> 0 | G17: =IF(NY_FS <> "Married Filing Jointly", 0, IF(G16<G13, G13-G16, 0)) -> 0
A18: Multiply by 30% (.30) (or by 35% (.35) if age 50 or older), not less than $200 | C18: =IF(B11="Yes", B51,IF(C17 = 0, 0, IF(C17<10000, IF(CY_TP_Age < 50, MAX(0.3*C17, 200),MAX(0.35*C17,200)),B51))) -> 3000 | D18: =IF(CY_FS <> "Married Filing Jointly", 0, IF(B11="Yes", C51, IF(D17<10000, IF(CY_SP_Age < 50, MAX(0.3*D17, 200),MAX(0.35*D17,200)), C51))) -> 0 | F18: =IF(E11="Yes", D51,IF(F17 = 0, 0, IF(F17<10000, IF(NY_TP_Age < 50, MAX(0.3*F17, 200),MAX(0.35*F17,200)),D51))) -> 4000 | G18: =IF(NY_FS <>"Married Filing Jointly", 0, IF(E11="Yes", E51, IF(G17<10000, IF(NY_SP_Age < 50, MAX(0.3*G17, 200),MAX(0.35*G17,200)), E51))) -> 0
A19: Earned income | B19: ='Planning Input'!C16+MAX(0, 'Planning Input'!C21)-'Planning Input'!C42-'Planning Input'!C44 -> 94910 | E19: ='Planning Input'!E16+MAX(0, 'Planning Input'!E21)-'Planning Input'!E42-'Planning Input'!E44 -> 94910
A21: Smallest of contribution, earned income, or maximum | C21: =IF('Planning Input'!B27>0,"See Pub 590",MIN(C18,B19,C9)) -> 0 | D21: =IF('Planning Input'!B27>0, 0, MIN(D18,B19,D9)) -> 0 | F21: =IF('Planning Input'!D27>0,"See Pub 590",MIN(F18,E19,F9)) -> 0 | G21: =IF('Planning Input'!E27>0, 0, MIN(G18,E19,G9)) -> 0
A24: 2007 Maximum Income for IRA Deduction | B24: Taxpayer | C24: Spouse | D24: Actual Taxpayer Amount | E24: Actual Spouse Amount
A25: Single or head of household | B25: 55000 | D25: =IF(CY_FS="Single",B25,IF(CY_FS="Head of Household",B25,0)) -> 0 | E25: 0
A26: Qualifying widow(er) | B26: 75000 | D26: =IF(CY_FS = "Qualifying Widow(er)", B26,0) -> 0 | E26: 0
A27: Married filing jointly
A28: If taxpayer covered by retirement plan | C28: 160000 | D28: 0 | E28: =IF(CY_FS = "Married Filing Jointly", IF(C10="Yes", IF(D10= "No", C28,0),0),0) -> 0
A29: If spouse covered by retirement plan | B29: 160000 | D29: =IF(CY_FS = "Married Filing Jointly", IF(D10="Yes", IF(C10= "No", B29,0),0),0) -> 0 | E29: 0
A30: If neither covered by retirement plan | B30: 75000 | C30: 75000 | D30: =IF(CY_FS = "Married Filing Jointly",IF($C$10="No", IF($D$10 = "No", B30,0),0),0) -> 0 | E30: =IF(CY_FS = "Married Filing Jointly",IF($C$10="No", IF($D$10 = "No", C30,0),0),0) -> 0
A31: Married filing separately
A32: If lived with spouse during year | B32: 10000 | D32: =IF(CY_FS = "Married Filing Separately",IF('Planning Input'!$B$8="Yes", Adjustments!B32,0),0) -> 0 | E32: 0
A33: If did not live with spouse during year | B33: 55000 | D33: =IF(CY_FS = "Married Filing Separately",IF('Planning Input'!$B$8="No", Adjustments!B33,0),0) -> 55000 | E33: 0
A35: 2008 Maximum Income for IRA Deduction | B35: Taxpayer | C35: Spouse | D35: Actual Taxpayer Amount | E35: Actual Spouse Amount
A36: Single or head of household | B36: 60000 | D36: =IF(NY_FS="Single",B36,IF(NY_FS="Head of Household",B36,0)) -> 0 | E36: 0
A37: Qualifying widow(er) | B37: 80000 | D37: =IF(NY_FS = "Qualifying Widow(er)", B37,0) -> 0 | E37: 0
A38: Married filing jointly
A39: If taxpayer covered by retirement plan | C39: 160000 | D39: 0 | E39: =IF(NY_FS = "Married Filing Jointly", IF(C10="Yes", IF(D10= "No", C39,0),0),0) -> 0
A40: If spouse covered by retirement plan | B40: 160000 | D40: =IF(NY_FS = "Married Filing Jointly", IF(D10="Yes", IF(C10= "No", B40,0),0),0) -> 0 | E40: 0
A41: If neither covered by retirement plan | B41: 80000 | C41: 80000 | D41: =IF(NY_FS = "Married Filing Jointly",IF($C$10="No", IF($D$10 = "No", B41,0),0),0) -> 0 | E41: =IF(NY_FS = "Married Filing Jointly",IF($C$10="No", IF($D$10 = "No", C41,0),0),0) -> 0
A42: Married filing separately
A43: If lived with spouse during year | B43: 10000 | D43: =IF(NY_FS = "Married Filing Separately",IF('Planning Input'!$B$8="Yes", Adjustments!B43,0),0) -> 0 | E43: 0
A44: If did not live with spouse during year | B44: 60000 | D44: =IF(NY_FS = "Married Filing Separately",IF('Planning Input'!$B$8="No", Adjustments!B44,0),0) -> 60000 | E44: 0
A47: IRA Maximum Deduction | B47: 2007 | D47: 2008
B48: Taxpayer | C48: Spouse | D48: Taxpayer | E48: Spouse
A49: Under age 50 | B49: 3000 | C49: 3000 | D49: 4000 | E49: 4000
A50: Age 50 or older | B50: 3500 | C50: 3500 | D50: 4500 | E50: 4500
A51: Actual | B51: =IF(CY_TP_Age <50,B49,B50) -> 3000 | C51: =IF(CY_SP_Age <50,C49,C50) -> 3000 | D51: =IF(NY_TP_Age <50,D49,D50) -> 4000 | E51: =IF(NY_SP_Age <50,E49,E50) -> 4000
A53: Tuition and Fees Deduction | B53: 2007 | D53: 2008
A54: Tuition and fees paid | B54: ='Planning Input'!B38 -> 4000 | D54: ='Planning Input'!D38 -> 4000
A56: Total income | C56: ='Planning Input'!C30 -> 94009 | E56: ='Planning Input'!E30 -> 94009
A57: Adjustments other than tuition and fees deduction | C57: ='Planning Input'!C37+'Planning Input'!C40+'Planning Input'!C41+'Planning Input'!C42+'Planning Input'!C43+'Planning Input'!C45 -> 7090 | E57: ='Planning Input'!E37+'Planning Input'!E40+'Planning Input'!E41+'Planning Input'!E42+'Planning Input'!E43+'Planning Input'!E45 -> 7090
A58: Difference | C58: =C56-C57 -> 86919 | E58: =E56-E57 -> 86919
A59: Filing status | B59: =CY_FS -> Married Filing Separately | D59: =NY_FS -> Married Filing Separately
A60: Total phaseout amount | B60: =IF(B59="Married Filing Jointly", B66,C66) -> 80000 | D60: =IF(D59="Married Filing Jointly", D66,E66) -> 80000
A61: Next level of phaseout | B61: =IF(B59="Married Filing Jointly", B67,C67) -> 65000 | D61: =IF(D59="Married Filing Jointly", D67,E67) -> 65000
A62: Tuition and fees deduction | C62: =IF(C58>B60, 0, IF(C58>B61, MIN(2000, B54),MIN(4000,B54))) -> 0 | E62: =IF(E58>D60,0,IF(E58>D61,MIN(2000,D54),MIN(4000,D54))) -> 0
A64: Phaseout Amounts for Tuition and Fees Deduction | B64: 2007 | D64: 2008
B65: Married Filing Jointly | C65: Other | D65: Married Filing Jointly | E65: Other
A66: Total phaseout amount | B66: 160000 | C66: 80000 | D66: 160000 | E66: 80000
A67: Next level of phaseout | B67: 130000 | C67: 65000 | D67: 130000 | E67: 65000

Sheet Deductions and Exemptions
A1: ='Planning Input'!A1 -> [Name]
A2: 2008 Year-End Tax Planning: Standard Deduction, Itemized Deductions, and Exemptions
A3: ='Planning Input'!A3 -> [Date]
A5: You do not need to enter anything into shaded cells. | E5: CONFIDENTIAL
A6: Allowed Itemized Deductions | B6: 2007 | D6: 2008
A7: Total itemized deductions | C7: ='Planning Input'!C62 -> 11987 | E7: ='Planning Input'!E62 -> 11987
A8: Medical, investment interest, and casualty | C8: ='Planning Input'!C51+'Planning Input'!C56+'Planning Input'!C58 -> 0 | E8: ='Planning Input'!E51+'Planning Input'!E56+'Planning Input'!E58 -> 0
A9: Difference (if 0, all allowed) | C9: =C7-C8 -> 11987 | E9: =E7-E8 -> 11987
A10: Difference multiplied by 0.80 | B10: =IF(C9=0, "", ROUND(C9*0.8,0)) -> 9590 | D10: =E9*0.8 -> 9589.6
A11: Adjusted gross income | B11: ='Planning Input'!C47 -> 86919 | D11: ='Planning Input'!E47 -> 86919
A12: Threshold for itemized deduction phaseout | B12: =IF(C9=0, "", IF(CY_FS="Married Filing Separately",71350,142000)) -> 71350 | D12: =IF(E9=0, "", IF(NY_FS="Married Filing Separately",72975,145950)) -> 72975
A13: Excess (if 0 or less, all allowed) | B13: =IF(C9=0, "", B11-B12) -> 15569 | D13: =IF(E9=0, "", D11-D12) -> 13944
A14: Multiply excess by 0.03 | B14: =IF(C9=0,"",IF(B13<=0,"",ROUND(0.03*B13,0))) -> 467 | D14: =IF(E9=0,"",IF(D13<=0,"",0.03*D13)) -> 418.32
A15: Smaller of 80% of difference, or 3% of excess | C15: =IF(C9=0, "", IF(B13<=0, "", MIN(B10,B14))) -> 467 | E15: =IF(E9=0, "", IF(D13<=0, "", MIN(D10,D14))) -> 418.32
A16: Allowed itemized deductions | C16: =IF(C9=0, C7, IF(B13<=0, C7,C7-C15)) -> 11520 | E16: =IF(E9=0, E7, IF(D13<=0, E7,E7-E15)) -> 11568.68
A18: 2007 Standard Deduction
B19: Regular | C19: Over Age 65 or Blind | D19: Regular Deduction | E19: Additional Deduction for Age | F19: Additional Deduction for Blindness
A20: Married filing jointly or qualifying widow(er) | B20: 9700 | C20: 950 | D20: =IF(CY_FS = "Married Filing Jointly", B20,IF(CY_FS = "Qualifying Widow(er)", B20, 0)) -> 0 | E20: =IF(D20=0,0,IF(CY_TP_Age>64,IF(CY_SP_Age>64,2*C20,C20),0)) -> 0 | F20: =IF(D20=0,0,IF(CY_Blind = "Both",2*E20,IF(CY_Blind = "Taxpayer", C20,IF(CY_Blind = "Spouse",C20,0)))) -> 0
A21: Single | B21: 4850 | C21: 1200 | D21: =IF(CY_FS = "Single", B21,0) -> 0 | E21: =IF(D21=0,0,IF(CY_TP_Age>64,C21,0)) -> 0 | F21: =IF(D21=0,0,IF(CY_Blind = "Taxpayer", C21,0)) -> 0
A22: Head of household | B22: 7150 | C22: 1200 | D22: =IF(CY_FS = "Head of Household", B22,0) -> 0 | E22: =IF(D22=0,0,IF(CY_TP_Age>64,C22,0)) -> 0 | F22: =IF(D22=0,0,IF(CY_Blind = "Taxpayer", C22,0)) -> 0
A23: Married filing separately | B23: 4850 | C23: 950 | D23: =IF(CY_FS = "Married Filing Separately", B23,0) -> 4850 | E23: =IF(D23=0,0,IF(CY_TP_Age>64,C23,0)) -> 0 | F23: =IF(D23=0,0,IF(CY_Blind = "Taxpayer", C23,0)) -> 0
A25: 2008 Standard Deduction
B26: Regular | C26: Over Age 65 or Blind | D26: Regular Deduction | E26: Additional Deduction for Age | F26: Additional Deduction for Blindness
A27: Married filing jointly or qualifying widow(er) | B27: 10000 | C27: 1000 | D27: =IF(NY_FS = "Married Filing Jointly", B27,IF(NY_FS = "Qualifying Widow(er)", B27, 0)) -> 0 | E27: =IF(D27=0,0,IF(NY_TP_Age>64,IF(NY_SP_Age>64,2*C27,C27),C27)) -> 0 | F27: =IF(D27=0,0,IF(NY_Blind = "Both",2*C27,IF(NY_Blind = "Taxpayer", C27,IF(NY_Blind = "Spouse",C27,0)))) -> 0
A28: Single | B28: 5000 | C28: 1250 | D28: =IF(NY_FS = "Single", B28,0) -> 0 | E28: =IF(D28=0,0,IF(NY_TP_Age>64,C28,0)) -> 0 | F28: =IF(D28=0,0,IF(NY_Blind = "Taxpayer", C28,0)) -> 0
A29: Head of household | B29: 7300 | C29: 1250 | D29: =IF(NY_FS = "Head of Household", B29,0) -> 0 | E29: =IF(D29=0,0,IF(NY_TP_Age>64,C29,0)) -> 0 | F29: =IF(D29=0,0,IF(NY_Blind = "Taxpayer", C29,0)) -> 0
A30: Married filing separately | B30: 5000 | C30: 1000 | D30: =IF(NY_FS = "Married Filing Separately", B30,0) -> 5000 | E30: =IF(D30=0,0,IF(NY_TP_Age>64,C30,0)) -> 0 | F30: =IF(D30=0,0,IF(NY_Blind = "Taxpayer", C30,0)) -> 0
A32: Exemptions | B32: 2007 | D32: 2008
A33: Amount per exemption | B33: 3100 | D33: 3200
A34: Exemption Calculation:
A35: Taxpayer and spouse personal exemption | B35: =IF(CY_FS ="Married Filing Jointly", 2*CY_Exemption_Amount, CY_Exemption_Amount) -> 3100 | D35: =IF(NY_FS ="Married Filing Jointly", 2*NY_Exemption_Amount, NY_Exemption_Amount) -> 3200
A36: Dependent exemptions | B36: ='Planning Input'!B12*'Deductions and Exemptions'!B33 -> 3100 | D36: ='Planning Input'!D12*'Deductions and Exemptions'!D33 -> 3200
A37: Total available exemptions | C37: =SUM(B35:B36) -> 6200 | E37: =SUM(D35:D36) -> 6400
A38: Adjusted gross income | B38: ='Planning Input'!C47 -> 86919 | D38: ='Planning Input'!E47 -> 86919
A39: Amount for filing status from table below | B39: =IF(CY_FS="Married Filing Jointly",'Deductions and Exemptions'!B47,IF(CY_FS="Qualifying Widow(er)",'Deductions and Exemptions'!B47,IF(CY_FS="Single",'Deductions and Exemptions'!B48,IF(CY_FS="Head of Household",'Deductions and Exemptions'!B49,IF(CY_FS="Married Filing Separately",'Deductions and Exemptions'!B50,0))))) -> 107025 | D39: =IF(NY_FS="Married Filing Jointly",'Deductions and Exemptions'!D47,IF(NY_FS="Qualifying Widow(er)",'Deductions and Exemptions'!D47,IF(NY_FS="Single",'Deductions and Exemptions'!D48,IF(NY_FS="Head of Household",'Deductions and Exemptions'!D49,IF(NY_FS="Married Filing Separately",'Deductions and Exemptions'!D50,0))))) -> 109475
A40: Difference | B40: =MAX(0, B38-B39) -> 0 | D40: =MAX(0, D38-D39) -> 0
A41: Difference divided | B41: =IF(B40>122500, 0, IF('Planning Input'!B7="Married Filing Separately",ROUNDUP('Deductions and Exemptions'!B40/1250,0),ROUNDUP('Deductions and Exemptions'!B40/2500,0))) -> 0 | D41: =IF(D40>122500, 0, IF(NY_FS="Married Filing Separately",ROUNDUP('Deductions and Exemptions'!D40/1250,0),ROUNDUP('Deductions and Exemptions'!D40/2500,0))) -> 0
A42: Multiply by 0.02 | B42: =B41*0.02 -> 0 | D42: =D41*0.02 -> 0
A43: Multiply line above by total available exemptions | C43: =ROUND(B42*C37,0) -> 0 | E43: =ROUND(D42*E37,0) -> 0
A44: Allowed exemptions | C44: =C37-C43 -> 6200 | E44: =E37-E43 -> 6400
A46: Phaseout Amounts for Exemptions | B46: 2007 | D46: 2008
A47: Married filing jointly or qualifying widow(er) | B47: 214050 | D47: 218950
A48: Single | B48: 142700 | D48: 145950
A49: Head of household | B49: 178350 | D49: 182450
A50: Married filing separately | B50: 107025 | D50: 109475

Sheet Tax Calculations
A1: ='Planning Input'!A1 -> [Name]
A2: 2008 Year-End Tax Planning: Tax Calculations
A3: ='Planning Input'!A3 -> [Date]
A5: You do not need to enter anything into shaded cells. | F5: CONFIDENTIAL
A6: Self-Employment (SE) Tax
C7: 2007 | E7: 2008
A8: Maximum earnings | C8: 87900 | E8: 90000
A9: Social Security tax rate | C9: 0.124 | E9: 0.124
A10: Medicare tax rate | C10: 0.029 | E10: 0.029
A11: Self-employment income | C11: ='Planning Input'!C21 -> 57000 | E11: ='Planning Input'!E21 -> 57000
A12: Net earnings from self-employment | C12: =MIN(B8,C11*0.9235) -> 52639.5 | E12: =MIN(E8,E11*0.9235) -> 52639.5
A14: Social Security tax | C14: =ROUND(C12*C9,0) -> 6527 | E14: =ROUND(E12*E9, 0) -> 6527
A15: Medicare tax | C15: =ROUND(C11*C10,0) -> 1653 | E15: =ROUND(E11*E10, 0) -> 1653
A16: Total self-employment tax | C16: =C14+C15 -> 8180 | E16: =E14+E15 -> 8180
A19: 2007 Individual Income Tax
A20: Married filing jointly (MFJ) or qualifying widow(er) (QW) taxable income
A21: 0 | B21: -- | C21: 14300 | D21: × | E21: 0.1 | F21: minus | G21: 0
A22: 14301 | B22: -- | C22: 58100 | D22: × | E22: 0.15 | F22: minus | G22: 715
A23: 58101 | B23: -- | C23: 117250 | D23: × | E23: 0.25 | F23: minus | G23: 6525
A24: 117251 | B24: -- | C24: 178650 | D24: × | E24: 0.28 | F24: minus | G24: 10042.5
A25: 178651 | B25: -- | C25: 319100 | D25: × | E25: 0.33 | F25: minus | G25: 18975
A26: 319101 | B26: -- | D26: × | E26: 0.35 | F26: minus | G26: 25357
A28: Single taxable income
A29: 0 | B29: -- | C29: 7150 | D29: × | E29: 0.1 | F29: minus | G29: 0
A30: 7151 | B30: -- | C30: 29050 | D30: × | E30: 0.15 | F30: minus | G30: 357.5
A31: 29051 | B31: -- | C31: 70350 | D31: × | E31: 0.25 | F31: minus | G31: 3262.5
A32: 100000 | B32: -- | C32: 146750 | D32: × | E32: 0.28 | F32: minus | G32: 5373
A33: 146751 | B33: -- | C33: 319100 | D33: × | E33: 0.33 | F33: minus | G33: 12710.5
A34: 319101 | B34: -- | D34: × | E34: 0.35 | F34: minus | G34: 19092.5
A36: Head of household (HOH) taxable income
A37: 0 | B37: -- | C37: 10200 | D37: × | E37: 0.1 | F37: minus | G37: 0
A38: 10201 | B38: -- | C38: 38900 | D38: × | E38: 0.15 | F38: minus | G38: 510
A39: 38901 | B39: -- | C39: 100500 | D39: × | E39: 0.25 | F39: minus | G39: 4400
A40: 100501 | B40: -- | C40: 162700 | D40: × | E40: 0.28 | F40: minus | G40: 7415
A41: 162701 | B41: -- | C41: 319100 | D41: × | E41: 0.33 | F41: minus | G41: 15550
A42: 319101 | B42: -- | D42: × | E42: 0.35 | F42: minus | G42: 21932
A44: Married filing separately (MFS) taxable income
A45: 0 | B45: -- | C45: 7150 | D45: × | E45: 0.1 | F45: minus | G45: 0
A46: 7151 | B46: -- | C46: 29050 | D46: × | E46: 0.15 | F46: minus | G46: 357.5
A47: 29051 | B47: -- | C47: 58625 | D47: × | E47: 0.25 | F47: minus | G47: 3262.5
A48: 58626 | B48: -- | C48: 89325 | D48: × | E48: 0.28 | F48: minus | G48: 5021.25
A49: 89326 | B49: -- | C49: 159550 | D49: × | E49: 0.33 | F49: minus | G49: 9487.5
A50: 159551 | B50: -- | D50: × | E50: 0.35 | F50: minus | G50: 12678.5
A52: 2008 Individual Income Tax
A53: Married filing jointly (MFJ) or qualifying widow(er) (QW) taxable income
A54: 0 | B54: -- | C54: 14600 | D54: × | E54: 0.1 | F54: minus | G54: 0
A55: 14601 | B55: -- | C55: 59400 | D55: × | E55: 0.15 | F55: minus | G55: 730
A56: 59401 | B56: -- | C56: 119950 | D56: × | E56: 0.25 | F56: minus | G56: 6670
A57: 119951 | B57: -- | C57: 182800 | D57: × | E57: 0.28 | F57: minus | G57: 10268.5
A58: 182801 | B58: -- | C58: 326450 | D58: × | E58: 0.33 | F58: minus | G58: 19408.5
A59: 326451 | B59: -- | D59: × | E59: 0.35 | F59: minus | G59: 25937.5
A61: Single taxable income
A62: 0 | B62: -- | C62: 7300 | D62: × | E62: 0.1 | F62: minus | G62: 0
A63: 7301 | B63: -- | C63: 29700 | D63: × | E63: 0.15 | F63: minus | G63: 365
A64: 29701 | B64: -- | C64: 71950 | D64: × | E64: 0.25 | F64: minus | G64: 3335
A65: 71951 | B65: -- | C65: 150150 | D65: × | E65: 0.28 | F65: minus | G65: 5493.5
A66: 150151 | B66: -- | C66: 326450 | D66: × | E66: 0.33 | F66: minus | G66: 13001
A67: 326451 | B67: -- | D67: × | E67: 0.35 | F67: minus | G67: 19530
A69: Head of household (HOH) taxable income
A70: 0 | B70: -- | C70: 10450 | D70: × | E70: 0.1 | F70: minus | G70: 0
A71: 10451 | B71: -- | C71: 39800 | D71: × | E71: 0.15 | F71: minus | G71: 522.5
A72: 39801 | B72: -- | C72: 102800 | D72: × | E72: 0.25 | F72: minus | G72: 4502.5
A73: 102801 | B73: -- | C73: 166450 | D73: × | E73: 0.28 | F73: minus | G73: 7586.5
A74: 166451 | B74: -- | C74: 326450 | D74: × | E74: 0.33 | F74: minus | G74: 15909
A75: 326451 | B75: -- | D75: × | E75: 0.35 | F75: minus | G75: 22438
A77: Married filing separately (MFS) taxable income
A78: 0 | B78: -- | C78: 7300 | D78: × | E78: 0.1 | F78: minus | G78: 0
A79: 7301 | B79: -- | C79: 29700 | D79: × | E79: 0.15 | F79: minus | G79: 365
A80: 29701 | B80: -- | C80: 59975 | D80: × | E80: 0.25 | F80: minus | G80: 3335
A81: 59976 | B81: -- | C81: 91400 | D81: × | E81: 0.28 | F81: minus | G81: 5134.25
A82: 91401 | B82: -- | C82: 163225 | D82: × | E82: 0.33 | F82: minus | G82: 9704.25
A83: 163226 | B83: -- | D83: × | E83: 0.35 | F83: minus | G83: 12968.75
A86: Capital Gains Tax | C86: 2007 | G86: 2008
A87: 1. Taxable income | E87: =CY_TaxIncome -> 69199 | H87: =NY_TaxIncome -> 68950
A88: 2. Qualified dividends | C88: ='Planning Input'!B19 -> 0 | G88: ='Planning Input'!D19 -> 0
A89: 3. Capital gains | C89: ='Planning Input'!C22 -> -3000 | G89: ='Planning Input'!E22 -> -3000
A90: 4. Dividends and capital gains | C90: =C88+C89 -> -3000 | G90: =G88+G89 -> -3000
A91: 5. Investment interest expense | C91: ='Planning Input'!C56 -> 0 | G91: ='Planning Input'!E56 -> 0
A92: 6. Net dividends and capital gains | E92: =MAX(0,C90-C91) -> 0 | H92: =MAX(0, G90-G91) -> 0
A93: 7. Taxable income less line 6 | E93: =MAX(0, E87-E92) -> 69199 | H93: =MAX(0, H87-H92) -> 68950
A94: 8. Enter the smaller of:
A95: The amount on line 1, or
A96: $29,050 if single or MFS,
A97: $58,100 if MFJ or QW,
A98: $38,900 if HOH | E98: =MIN(E87, IF(CY_FS = "", "",IF(CY_FS="Single",29050,IF(CY_FS="Married Filing Separately",29050,IF(CY_FS = "Married Filing Jointly", 58100, IF(CY_FS = "Qualifying Widow(er)", 58100, IF(CY_FS = "Head of Household", 38900, 0))))))) -> 29050 | H98: =MIN(H87, IF(NY_FS = "", "",IF(NY_FS="Single",29050,IF(NY_FS="Married Filing Separately",29050,IF(NY_FS = "Married Filing Jointly", 58100, IF(NY_FS = "Qualifying Widow(er)", 58100, IF(NY_FS = "Head of Household", 38900, 0))))))) -> 29050
A99: 9. If line 7 < line 8, amount from line 7 | E99: =IF(E93<E98, E93, "") ->  | H99: =IF(H93<H98, H93, "") -> 
A100: 10. Subtract line 9 from line 8 | E100: =IF(E93>=E98, "",E98-E99) ->  | H100: =IF(H93>=H98, "",H98-H99) -> 
A101: 11. Multiply line 10 by 5% | F101: =IF(E93>=E98, "", ROUND(E100*0.05,0)) -> 
A102: 12. If line 6 not equal to line 10, smaller of line 1 or line 6 | E102: =IF(E93>=E98,MIN(E87,E92), IF(E92=E100, "", MIN(E87, E92))) -> 0 | H102: =IF(H93>=H98,MIN(H87,H92), IF(H92=H100, "", MIN(H87, H92))) -> 0
A103: 13. Amount on line 10 | E103: =IF(E92=E100, "", IF(E100="", 0, E100)) -> 0 | H103: =IF(H92=H100, "", IF(H100="", 0, H100)) -> 0
A104: 14. Subtract line 13 from line 12 | E104: =IF(E92=E100, "", E102-E103) -> 0 | H104: =IF(H92=H100, "", H102-H103) -> 0
A105: 15. Multiply line 14 by 15% | F105: =IF(E92=E100, "", IF(E104="", "", ROUND(E104*0.15,0))) -> 0 | I105: =IF(H92=H100, "", IF(H104="", "", ROUND(H104*0.15,0))) -> 0
A106: 16. Tax on amount on line 7 | F106: 14354 | I106: 14172
A107: 17. Add lines 11, 15, and 16 | F107: =IF(F101 ="", IF(F105 = "", F106, F105 + F106), IF(F105="", F101+F106, F101+F105+F106)) -> 14354 | I107: =IF(I101 = "", IF(I105 = "", I106, I105 + I106), IF(I105="", I101+I106, I101+I105+I106)) -> 14172
A108: 18. Tax on amount on line 1 | F108: 14219 | I108: 14172
A109: 19. Tax on all taxable income | F109: =MIN(F107,F108) -> 14219 | I109: =MIN(I107,I108) -> 14172
A111: Effective and Marginal Tax Rates | C111: 2007 | E111: 2008
A112: Effective tax rate | C112: =IF(CY_TaxIncome = 0, 0, F109/CY_TaxIncome) -> 0.205479848 | E112: =IF(NY_TaxIncome=0,0,I109/NY_TaxIncome) -> 0.2055402466
A113: Marginal tax rate | C113: 0.28 | E113: 0.28
A114: =IF('Planning Summary'!B13=0, "", "Marginal tax rate: Self-employment income") -> Marginal tax rate: Self-employment income | C114: =C113+'Tax Calculations'!C9+'Tax Calculations'!C10 -> 0.433 | E114: =E113+'Tax Calculations'!E9+'Tax Calculations'!E10 -> 0.433

Sheet Credits
A1: ='Planning Input'!A1 -> [Name]
A2: 2008 Year-End Tax Planning: Credits
A3: ='Planning Input'!A3 -> [Date]
A5: Gray cells are calculated for you. You do not need to enter anything in them. | E5: CONFIDENTIAL
A6: Child Tax Credit | B6: 2007 | D6: 2008
A7: Maximum credit per child | B7: 1000 | D7: 1000
A8: Number of qualifying children × maximum amount | B8: ='Planning Input'!B13*B7 -> 1000 | D8: ='Planning Input'!D13*D7 -> 1000
A9: Phaseout | B9: =B23 -> 1000 | D9: =C23 -> 1000
A10: Maximum credit available | C10: =B8-B9 -> 0 | E10: =D8-D9 -> 0
A11: Tax | B11: =CY_Tax -> 14354 | D11: =NY_Tax -> 14172
A12: Certain other credits | B12: =SUM('Planning Input'!B73:B77) -> 0 | D12: =SUM('Planning Input'!D73:D77) -> 0
A13: If tax does not equal credits, difference | C13: =MAX(0,B11-B12) -> 14354 | E13: =MAX(0, D11-D12) -> 14172
A14: Smaller of tax or maximum credit | C14: =MIN(C10,C13) -> 0 | E14: =MIN(E10,E13) -> 0
A17: Child Tax Credit AGI Phaseout | B17: 2007 | C17: 2008
A18: Adjusted gross income | B18: ='Planning Input'!C47 -> 86919 | C18: ='Planning Input'!E47 -> 86919
A19: Filing status | B19: =CY_FS -> Married Filing Separately | C19: =NY_FS -> Married Filing Separately
A20: Number of children eligible | B20: ='Planning Input'!B13 -> 1 | C20: ='Planning Input'!D13 -> 1
A21: Beginning phaseout | B21: =IF(B19="Married Filing Jointly", B26,IF(B19="Married Filing Separately",B28,B27)) -> 55000 | C21: =IF(NY_FS="Married Filing Jointly", C26,IF(NY_FS = "Married Filing Separately",C28,C27)) -> 55000
A22: Ending phaseout | B22: =IF(B20=1,B21+((B8/5*50)-999),IF(B20>1,B21+((B8/5*50)-999)+((B20-1)*(B8/5*50)),0)) -> 64001 | C22: =IF(C20=1,C21+((D8/5*50)-999),IF(C20>1,C21+((D8/5*50)-999)+((C20-1)*(D8/5*50)),0)) -> 64001
A23: Actual phaseout | B23: =IF(B18<B21,0,IF(B18>B22,B8,(ROUNDUP((B18-B21),-3)/1000)*50)) -> 1000 | C23: =IF(C18<C21,0,IF(C18>C22,D8,(ROUNDUP((C18-C21),-3)/1000)*50)) -> 1000
A25: Filing Status | B25: 2007 Beginning AGI Phaseout | C25: 2008 Beginning AGI Phaseout
A26: Married filing jointly | B26: 110000 | C26: 110000
A27: Single, head of household, qualified widow(er) | B27: 75000 | C27: 75000
A28: Married filing separately | B28: 55000 | C28: 55000
